Cogmind - Beta 15 @@@ ROGUE MODE // 2025.05.21 @ 17:06:46 Player: SUBSUB Result: Destroyed by D-53 Grenadier with Mini Grenade Launcher Performance ------------- Evolutions (1) 500 Regions Visited (3) 600 Robots Destroyed (52) 260 Value Destroyed (986) 986 Prototype IDs (8) 160 Alien Tech Used (0) 0 Bonus (0) 0 TOTAL SCORE: 2506 Bonus ------- None Cogmind --------- Core Integrity 0/400 Matter 11/300 Energy 71/100 System Corruption 9% Temperature Cool (0) Movement Treading (240) Ox1 Location -9/Mines Parts ------- > --- POWER (1) -------- (None) > --- PROPULSION (3) --- Light Treads > --- UTILITY (3) ------ High-capacity Storage Unit Signal Interpreter > --- WEAPON (2) ------- (None) > --- INVENTORY (20) --- Light Treads Light Treads Light Treads Light Treads Improved Heat Sink High-capacity Matter Pod (200) Structural Scanner Visual Processing Unit Improved Terrain Scanner Targeting Computer Targeting Computer Medium Armor Plating Plasma Cutter Peak State ------------ > --- POWER ------------ Ion Engine > --- PROPULSION ------- Light Treads Light Treads Light Treads > --- UTILITY ---------- High-capacity Storage Unit Sensor Array Signal Interpreter > --- WEAPON ----------- Improved EM Shotgun Improved Assault Rifle > --- INVENTORY -------- Ion Engine Light Treads Light Treads Light Treads Light Treads Light Treads High-capacity Matter Pod Visual Processing Unit Improved Terrain Scanner Light Armor Plating Light Armor Plating Light Armor Plating Beam Rifle Beam Rifle Shotgun Shotgun Shotgun Shotgun Datajack Mining Laser [Rating: 15] Favorites ----------- Power Ion Engine Engine Ion Engine Propulsion Light Treads Treads Light Treads Leg Aluminum Leg Utility High-capacity Storage Unit Device Sensor Array Storage High-capacity Storage Unit Processor Signal Interpreter Protection Medium Armor Plating Weapon Beam Rifle Energy Gun Beam Rifle Energy Cannon Beam Cannon Ballistic Gun Shotgun Launcher Mini Grenade Launcher Special Weapon Mining Laser Build | -11 -10 -9 -9 ------- Run | Yrd Mat Mat Min Slots Evolved 2 | . . 2 . Power . | . . . . Propulsion 1 | . . 1 . Utility 1 | . . 1 . Weapon . | . . . . Parts Attached 43 | 8 10 19 6 Power 6 | 1 2 3 . Engine 6 | 1 2 3 . Core . | . . . . Reactor . | . . . . Propulsion 17 | 3 1 9 4 Treads 15 | 1 1 9 4 Leg 2 | 2 . . . Wheel . | . . . . Hover . | . . . . Flight . | . . . . Utility 7 | 2 2 1 2 Device 3 | 1 1 . 1 Storage 2 | 1 1 . . Processor 1 | . . 1 . Hackware . | . . . . Protection 1 | . . . 1 Artifact . | . . . . Weapon 13 | 2 5 6 . Energy Gun 4 | 1 1 2 . Energy Cannon 1 | . 1 . . Ballistic Gun 6 | 1 2 3 . Ballistic Cannon . | . . . . Launcher 1 | . . 1 . Special Weapon 1 | . 1 . . Impact Weapon . | . . . . Slashing Weapon . | . . . . Piercing Weapon . | . . . . Special Melee Weapon . | . . . . Unidentified Prototypes 2 | . . 2 . Parts Lost 13 | . 1 1 11 Power 1 | . . . 1 Propulsion 5 | . . 1 4 Utility 4 | . 1 . 3 Weapon 3 | . . . 3 Highest Loss Streak 11 | . 1 1 11 To Critical Strikes 1 | . . 1 . Average Backups 16 | 3 13 19 18 Power . | 1 1 . . Propulsion 4 | 1 3 6 7 Utility 6 | . 3 8 9 Weapon 3 | . 3 3 . Tool/Special . | . . . . Unused Backups 29 | . 4 12 13 Power 1 | . 1 . . Propulsion 5 | . . 1 4 Utility 15 | . 2 5 8 Weapon 6 | . 1 5 . Tool/Special 2 | . . 1 1 Average Slot Usage (%) 95 | . 90 99 78 Engine 12 | . 14 11 7 Treads 27 | . 21 33 24 Leg 2 | . 6 . . Device 8 | . 5 11 6 Storage 12 | . 14 11 11 Processor 6 | . . 10 11 Energy Gun 7 | . 5 8 . Energy Cannon 3 | . 8 . . Ballistic Gun 13 | . 14 12 12 Peak Build Rating 15 | 7 11 15 14 Average Rating 11 | 5 8 14 11 On Entrance 8 | . 7 11 14 Naked Turns . | . . . . Heaviest Build 54 | 13 52 54 50 Greatest Support 60 | 20 40 60 60 Greatest Overweight (x) 1 | . 1 1 1 Average Overweight (x) . | . . . . Largest Inventory Capacity 20 | 8 20 20 20 Average Capacity 18 | 7 16 20 20 Most Carried 20 | 6 20 20 20 Average Carried 16 | 3 13 19 18 Final Capacity 20 | 8 20 20 20 Final Carried 20 | 6 20 20 13 Class Distribution -------------------- 100% | Mutant Dominant Class ---------------- Mutant | -10/Materials Mutant | -9/Materials Mutant | -9/Mines Resources | -11 -10 -9 -9 ----------- Run | Yrd Mat Mat Min Matter Collected 1312 | 377 393 528 14 Remotely . | . . . . Salvage Created 1924 | 149 606 1084 85 Parts 113 | 6 33 71 3 Haulers Intercepted 7 | . 2 5 . Recyclers Shooed 4 | . . 4 . Parts Field Recycled . | . . . . Retrieved Matter . | . . . . Parts Self-Destructed . | . . . . Prevented . | . . . . Kills | -11 -10 -9 -9 ------- Run | Yrd Mat Mat Min Combat Hostiles Destroyed 42 | . 11 16 15 Guns 25 | . 6 15 4 Cannons 5 | . 5 . . AOE 12 | . . 1 11 Classes Destroyed 9 | 3 4 1 1 Worker 5 | 2 1 2 . Tunneler 2 | 1 1 . . Hauler 7 | . 2 5 . Recycler 5 | 1 1 3 . Watcher 3 | . 1 2 . Swarmer 12 | . 3 6 3 Grunt 11 | . 8 3 . Sentry 7 | . . 7 . Assembled 12 | . . . 12 Best Kill Streak 15 | 2 4 5 15 Combat Bots Only 15 | . 3 4 15 Max Kills in Single Turn 3 | 1 2 2 3 Gunslinging . | . . . . Exploded 3 | . . 1 3 Melee . | . . . . Uniques/NPCs Destroyed . | . . . . Combat | -11 -10 -9 -9 -------- Run | Yrd Mat Mat Min Hostile Shots Fired 213 | . 50 91 72 Missed 56 | . 13 26 17 Hits 157 | . 37 65 55 Melee 4 | . . . 4 Projectile 153 | . 37 65 51 AOE 24 | . . . 24 Critical Strikes 5 | . . 5 . Damage Taken 2746 | . 438 898 1410 Core 475 | . 66 123 286 Absorbed by Shields 6 | . . . 6 Regen/Repaired (Parts) 52 | . . 52 . Core Remaining (%) 86 | 100 73 . . Volleys Fired 148 | 24 38 63 23 Largest 2 | 1 2 2 2 Hottest 123 | 20 123 79 53 Shots Fired 260 | 24 73 123 40 Gun 225 | 24 50 121 30 Cannon 21 | . 21 . . Launcher 12 | . . 2 10 Special 2 | . 2 . . Kinetic 158 | 24 37 67 30 Thermal 81 | . 27 54 . Explosive 12 | . . 2 10 Electromagnetic 9 | . 9 . . Robot Hit Streak 14 | 5 14 9 3 Robot Miss Streak 4 | 3 4 4 3 Penetration Max . | . . . . Secondary Targets 5 | . . 4 1 Max Gunslinging Chain 1 | . . 1 1 Shots Hit Robots 156 | 13 48 75 20 Core Hits 103 | 5 27 42 29 Critical Kills . | . . . . Critical Parts Destroyed 1 | . . 1 . Critical Strikes 4 | . . 4 . Burn 3 | . . 3 . Destroy 1 | . . 1 . Melee Attacks . | . . . . Impact . | . . . . Slashing . | . . . . Piercing . | . . . . Sneak Attacks . | . . . . Combat Hostiles . | . . . . Follow-up Attacks . | . . . . Damage Inflicted 3386 | 155 876 1303 1052 Guns 2010 | 155 476 1143 236 Cannons 228 | . 228 . . Explosions 1068 | . 143 112 813 Melee . | . . . . Ramming 56 | . 5 48 3 Kinetic 1382 | 155 369 622 236 Thermal 930 | . 409 521 . Explosive 925 | . . 112 813 Electromagnetic 93 | . 93 . . Impact . | . . . . Slashing . | . . . . Piercing . | . . . . Highest Corruption 9 | . . 8 9 Average Corruption 6 | . . 6 8 Corruption Purged . | . . . . Corruption Blocked . | . . . . Effects 64 | . . 59 5 Message Errors 15 | . . 14 1 Matter Fused 12 | . . 12 . Heat Flow Errors 10 | . . 10 . Energy Discharges 6 | . . 5 1 Parts Rejected 2 | . . . 2 Parts Fused 2 | . . 2 . Data Loss (minor) 9 | . . 9 . Data Loss (major) 2 | . . 1 1 Misfires 1 | . . 1 . Alerts 2 | . . 2 . Weapon Failures 3 | . . 3 . Overload Shots . | . . . . Overflow Damage 14 | . 11 . 3 Projectiles . | . . . . Explosions 14 | . 11 . 3 Melee . | . . . . Knockbacks 1 | . . 1 . Impact 1 | . . 1 . Kinetic . | . . . . Secondary . | . . . . Self-Inflicted Damage 243 | . 56 79 108 Shots 10 | . 1 2 7 Rammed 12 | . 3 7 2 Targets Rammed 12 | . 3 7 2 Kicked . | . . . . Crushed . | . . . . Highest Temperature 406 | . 120 406 12 Average Temperature 63 | . 29 83 4 Received Heat Transfer 444 | . 138 306 . Effects 1 | . . 1 . Energy Bleed 1 | . . 1 . Siege Activations . | . . . . Martial Activations . | . . . . Shielding Activations . | . . . . Robots Disrupted . | . . . . Combat Hostiles . | . . . . Robots Corrupted . | . . . . Combat Hostiles . | . . . . Parts Fried 1 | . 1 . . Impact Corruptions . | . . . . Robots Melted . | . . . . Combat Hostiles . | . . . . Parts Melted 5 | . 2 3 . Heat Transferred 2222 | . 668 1554 . Parts Sabotaged . | . . . . Parts Stolen . | . . . . Parts Stripped . | . . . . Power Chain Reactions 1 | . 1 . . Alert | -11 -10 -9 -9 ------- Run | Yrd Mat Mat Min Maximum Alert Level . | . . . . Low Security (%) 100 | 100 100 100 100 Level 1 . | . . . . Level 2 . | . . . . Level 3 . | . . . . Level 4 . | . . . . Level 5 . | . . . . High Security . | . . . . Max Security . | . . . . Peak Influence 155 | 5 90 155 141 Initial 53 | . . 20 53 Average 48 | . 27 64 94 Influence Increases 1118 | 20 381 603 114 Destroy 0b10 Robot/C 600 | . 220 320 60 Destroy 0b10 Robot/NC 110 | 20 30 60 . Destroy Leader 170 | . 46 114 10 Successful Hack 21 | . 5 16 . Disable Machine 60 | . 30 30 . Destroy Structure 82 | . 5 33 44 Lose Combat Pursuer 75 | . 45 30 . Influence Decreases 1101 | 20 332 514 235 Entered New Map 114 | . . 29 85 Time Decay 857 | 20 322 475 40 Lost Part 130 | . 10 10 110 Squads Dispatched 2 | . 1 1 . Investigation . | . . . . Extermination . | . . . . Reinforcement 2 | . 1 1 . Assault . | . . . . Garrison . | . . . . Intercept . | . . . . Searches Triggered . | . . . . Construction Impeded . | . . . . Haulers Reinforced . | . . . . Active Scanning Responses . | . . . . Cargo Convoy Interrupts . | . . . . Stealth | -11 -10 -9 -9 --------- Run | Yrd Mat Mat Min Distress Signals 8 | . 3 5 . Communications Jammed . | . . . . Distress Signals . | . . . . Times Spotted 81 | . 25 31 25 Peak Tracking Total 9 | . 4 7 9 Tactical Retreats 4 | . 2 2 . Traps | -11 -10 -9 -9 ------- Run | Yrd Mat Mat Min Traps Triggered 3 | . . 3 . Indirectly . | . . . . Trap Hack Attempts . | . . . . Triggered . | . . . . Disarmed 4 | . . 4 . Reprogrammed . | . . . . Reused . | . . . . Traps Extracted . | . . . . Installed . | . . . . Triggered . | . . . . Machines | -11 -10 -9 -9 ---------- Run | Yrd Mat Mat Min Machines Disabled 4 | . 2 2 . Max in Single Turn 1 | . 1 1 . Machines Repaired . | . . . . Machines Dismantled . | . . . . Machines Sabotaged . | . . . . Overloaded Fab Kills . | . . . . Hacking | -11 -10 -9 -9 --------- Run | Yrd Mat Mat Min Machines Accessed 8 | . 2 6 . Terminals 5 | . 1 4 . Fabricators . | . . . . Repair Stations 1 | . . 1 . Recycling Units 1 | . 1 . . Scanalyzers 1 | . . 1 . Garrison Access . | . . . . Total Hacks 29 | . 7 22 . Successful 17 | . 2 15 . Failed 11 | . 5 6 . Catastrophic . | . . . . Database Lockouts 1 | . . 1 . Manual 14 | . 5 9 . Terminals 23 | . 5 18 . Fabricators . | . . . . Repair Stations 2 | . . 2 . Recycling Units 2 | . 2 . . Scanalyzers 2 | . . 2 . Garrison Access . | . . . . Terminal Hacks 10 | . 1 9 . Record 1 | . . 1 . Robot Analysis 3 | . . 3 . Prototype ID Bank 3 | . 1 2 . Alert Level 1 | . . 1 . Disarm Traps 1 | . . 1 . Surveillance Status 1 | . . 1 . Fabricator Hacks . | . . . . Repair Station Hacks 2 | . . 2 . Scan Component 1 | . . 1 . Repair 1 | . . 1 . Recycling Unit Hacks 1 | . 1 . . Report Inventory 1 | . 1 . . Scanalyzer 2 | . . 2 . Insert Component 1 | . . 1 . Analyze 1 | . . 1 . Garrison Access Hacks . | . . . . Unauthorized Hacks 2 | . . 2 . Terminals 2 | . . 2 . Assimilate 1 | . . 1 . Botnet 1 | . . 1 . Fabricators . | . . . . Repair Stations . | . . . . Recycling Units . | . . . . Scanalyzers . | . . . . Garrison Access . | . . . . Data Cores Recovered . | . . . . Used . | . . . . Hacking Detections 6 | . 1 5 . Full Trace Events . | . . . . Feedback Events . | . . . . Feedback Blocked . | . . . . Robot Schematics Acquired . | . . . . Robots Built . | . . . . Authchips . | . . . . Time . | . . . . Total Robot Build Rating . | . . . . Part Schematics Acquired 1 | . . 1 . Parts Built . | . . . . Authchips . | . . . . Time . | . . . . Total Part Build Rating . | . . . . Parts Repaired 1 | . . 1 . Time 51 | . . 51 . Parts Recycled . | . . . . Recycled Matter . | . . . . Retrieved Matter . | . . . . Retrieved Components . | . . . . Parts Scanalyzed 1 | . . 1 . Part Schematics Acquired 1 | . . 1 . Parts Damaged 1 | . . 1 . Bothacking | -11 -10 -9 -9 ------------ Run | Yrd Mat Mat Min Used RIF Installer . | . . . . Robots Hacked . | . . . . Non-combat . | . . . . Combat . | . . . . Robot Hacks Applied . | . . . . Relay Couplers Released . | . . . . Fabnet Peak Effective % . | . . . . Robots Rewired . | . . . . Allies Hacked . | . . . . Hacks Repelled . | . . . . Allies | -11 -10 -9 -9 -------- Run | Yrd Mat Mat Min Total Allies . | . . . . Largest Group . | . . . . Highest-Rated Group . | . . . . Highest-Rated Ally . | . . . . Total Orders . | . . . . Ally Attacks . | . . . . Total Damage . | . . . . Kills . | . . . . Allies Corrupted . | . . . . Allies Melted . | . . . . Intel | -11 -10 -9 -9 ------- Run | Yrd Mat Mat Min Active Infowar (turns) 3625 | 122 723 2728 52 Sensors 3147 | . 367 2728 52 Seismic 478 | 122 356 . . Robot Analysis Total 3 | . . 3 . Derelict Logs Recovered . | . . . . Drone Launches . | . . . . Drone Recoveries . | . . . . Exploration | -11 -10 -9 -9 ------------- Run | Yrd Mat Mat Min Turns Passed 4939 | 226 1894 2728 91 Spaces Moved 2318 | 135 726 1448 9 Core 7 | 7 . . . Treads 2019 | 9 553 1448 9 Legs 292 | 119 173 . . Wheels . | . . . . Hover . | . . . . Flight . | . . . . Fastest Speed 50 | 50 120 160 160 Average Speed 171 | 119 203 160 231 Slowest Speed 240 | 160 240 240 240 Overloaded Moves . | . . . . Propulsion Burnouts . | . . . . Robots Hopped . | . . . . Potential Cave-ins . | . . . . Cave-ins Triggered . | . . . . Exploration Rate (%) 38 | 7 69 67 9 Regions Visited 3 Branch Regions 1 Pre-discovered Areas . | . . . . Known Exits Taken 1 | . . 1 . Unknown Exits Taken 2 | 1 1 . . Scrap Searched . | . . . . Spaces Dug . | . . . . Terrain Destroyed 121 | . 4 44 73 Melee . | . . . . Projectile . | . . . . AOE 121 | . 4 44 73 Terrain Rammed . | . . . . Walls Destroyed . | . . . . Machines Disabled . | . . . . Actions | -11 -10 -9 -9 --------- Run | Yrd Mat Mat Min Total 3023 | 172 1067 1741 43 Wait 411 | . 254 156 1 Move 2315 | 134 725 1447 9 Hop . | . . . . Pick Up 49 | 6 22 21 . Fast Attach 11 | 7 3 1 . Attach 11 | . . 4 7 Detach 1 | . 1 . . Swap 27 | 1 8 17 1 Drop 38 | . 13 25 . Fire 148 | 24 38 63 23 Melee . | . . . . Ram . | . . . . Kick . | . . . . Crush 12 | . 3 7 2 Escape Stasis . | . . . . Rewire . | . . . . Trap . | . . . . Miscellaneous . | . . . . Route ------- -11/Scrapyard -10/Materials (discovered 3 exits: *Mat / [*Min x2]) -9/Materials (discovered 4 exits: [*Mat x3] / *Min) -9/Mines History --------- Turn | Location | Event 23 | -11/Scrapyard | Discovered new exit (range 15) 227 | -11/Scrapyard | Entered Materials 304 | -10/Materials | Build established: Mutant 675 | -10/Materials | Discovered new exit (range 7) 1380 | -10/Materials | Discovered new exit (range 8) 1732 | -10/Materials | Discovered new exit (range 13) 2121 | -10/Materials | Entered another Materials area 2121 | -9/Materials | Evolved 2 slots: Propulsion x1, Utility x1 2647 | -9/Materials | Discovered new exit (range 16) 3208 | -9/Materials | Repaired Imp. Assault Rifle 3821 | -9/Materials | Discovered new exit (range 16) 3970 | -9/Materials | Central database locked down 4208 | -9/Materials | Discovered new exit (range 13) 4746 | -9/Materials | Discovered new exit (range 8) 4847 | -9/Materials | Identified exit to Mines 4849 | -9/Materials | Entered Mines 4850 | -9/Mines | Assembled infested the area 4902 | -9/Mines | Core integrity fell below 50% 4926 | -9/Mines | Destroyed 15 combat bots 4932 | -9/Mines | Core integrity fell below 20% 4940 | -9/Mines | Destroyed by D-53 Grenadier with Mini Grenade Launcher Last Messages --------------- 04913_ Autogun destroyed. 04914_ The unstable cave ceiling collapses. 04917_ Lgt. Treads destroyed. 04919_ The unstable cave ceiling collapses. 04919_ Lgt. Treads destroyed. 04919_ Med. Armor Plating destroyed. 04920_ The unstable cave ceiling collapses. 04921_ Autogun destroyed. 04923_ The unstable cave ceiling collapses. 04923_ Shield Generator destroyed. 04926_ The unstable cave ceiling collapses. 04927_ Lgt. Treads destroyed. 04927_ Mni. Grenade Launcher destroyed. 04929_ D-53 Grenadier destroyed. 04931_ The unstable cave ceiling collapses. 04932_ System corrupted: Substantial component data lost. 04934_ The unstable cave ceiling collapses. 04939_ Slammed into D-53 Grenadier. 04940_ The unstable cave ceiling collapses. 04940_ Lgt. Treads destroyed. Map ----- +----------------------------------------------------+ | ???????????????????????????????????? | | ???????????????????????????????????? | | ???????????????????????????????????? | | ???????????????????????????????????? | | ???????????????????????????????????? | | ???????????????????????????????????? | | ???????????????????????????????????? | | ???????????????????????????????????? | | ???????????????????????????????????? | | ???????????????????????????????????? | | ???????????????????????? ""????????? | | ???????????????????????? ????????? | | ???????????????????????? ????????? | | ??????????????????????## ????????? | | ??????????????????????# ????????? | | ??????????????????????? t ????????? | | ??????????????????????? ????????? | | ???????????????????????? ????????? | | ????????????????######??# ########?? | | ????????????????? ?#%# # #?? | | ???????????????????$ ## # ##? | | ????????????????????## # #? | | ????????????????????# # #? | | ??????????????????#### #? | | ??????????????????# d # | | ??????????????????# # @ # | | ??????????????????# #? | | ?????????????????# # #? | | ?????????????????# # #? | | ?????????????????#??# # #? | | ????????????????????## ###? | | ???????????????????? # #??? | | ???????????????????#### ## ##??? | | ??????????????????????# #???? | | ??????????????????????## #???? | | ???????????????????????## #???? | | ???????????????????????# # " ???? | | ???????????????????????## ???? | | ?????????????????????????# #??? | | ????????????????????????? #### #??? | | ????????????????????????? ???? #??? | | ????????????????????????? ???? ????? | | ????????????????????????? ?????????? | | ???????????????????????????????????? | | ???????????????????????????????????? | | ???????????????????????????????????? | | ???????????????????????????????????? | | ???????????????????????????????????? | | ???????????????????????????????????? | | ???????????????????????????????????? | +----------------------------------------------------+ Best States ------------- Heat Dissipation 28 Energy Generation 12 Energy Capacity 265 Matter Stores 300 Matter Capacity 300 Sight Range 16 Robot Scan Range 14 Terrain Scan Density 10 Evasion (%) 55 Recoil Reduction 3 Item Schematics ----------------- Imp. Assault Rifle | -9/Materials | Scanalyzed Robot Schematics ------------------ None Fabricated ------------ Nothing Repaired ---------- Imp. Assault Rifle | 62% | -9/Materials Alien Tech Used ----------------- None Achievements -------------- None Challenges ------------ None Game ------ Seed OpticalCooledRipteeth Manual? 0 Play Time 00:38:50 Cumulative 32.6 hours Start 2025.05.21 @ 16:22:11 End 2025.05.21 @ 17:06:46 Sessions 1 Manual Loads 0 Difficulty Rogue Special Mode None Game No. 44 Rogue 44 Adventurer 0 Explorer 0 Win Type - Total 0 Types 0/0/0/0/0/0/0/0/0/0 Lore% 34 Gallery% 25 Achievement% 27 Wizard Run 0 Options --------- Layout 0 ASCII 0 Keyboard 1 Movement Vi Keybinds 0 Fullscreen 1 Font 18/SmallcapsGlow Map View 76x50 Zoom Use 0% Tactical HUD 1 Map Filters NONE Filters NONE Steam 1 RUN: 410f64ec-a45b-4eed-96b8-2d906cb1820c